Workbook

Sheet Mapa
E2: =HYPERLINK("https://es.wikipedia.org/wiki/" & IF(miSelección="","África",LEFT(miSelección,IFERROR(FIND(" - ",miSelección)-1,LEN(miSelección)))),IF(miSelección="","Seleccionar algún país de África",miSelección&"")) -> Seleccionar algún país de África
D4: ü | E4: =IF(miSelección="","",IFERROR(SUBSTITUTE(SUBSTITUTE(TRIM(INDEX(Datos[Nombre oficial],miFilaDatos)&" *")," *",""),"*",miSelección),"")) -> 
D5: 
E6: =IF(miSelección="",0,IFERROR(INDEX(Datos[Población],miFilaDatos),0)) -> 0
E8: =IF(miSelección="",0,IFERROR(INDEX(Datos[Población (2018)],miFilaDatos),0)) -> 0
E9: =IF(miSelección="",0,IFERROR(INDEX(Datos[Superficie (km²)],miFilaDatos),0)) -> 0
E11: =IF(miSelección="","",IFERROR("Capital: " & INDEX(Datos[Capital],miFilaDatos),"")) -> 
E12: =IF(miSelección="","",IFERROR("Idioma oficial: " & INDEX(Datos[Idioma oficial],miFilaDatos),"")) -> 
E13: =IF(miSelección="","",IFERROR("Gobierno: " & INDEX(Datos[Forma de Gobierno],miFilaDatos),"")) -> 
E15: =IF(miSelección="","",IFERROR("Moneda: " & INDEX(Datos[Moneda],miFilaDatos),"")) -> 
E16: =IF(miSelección="",0,IFERROR(INDEX(Datos[PIB per cápita (US$)],miFilaDatos),0)) -> 0
E19: Clic aquí para reiniciar el mapa de África
D21: Blog: | E21: #ExcelPedroWave
D22: YouTube: | E22: Excel Pedro Wave
D23: Copyright: | E23: Creative Commons 3.0
A24: 0 | D24: Datos: | E24: Poblacion de África 2023 (countrymeters.info)
A25: 0 | D25: Wikipedia: | E25: Anexo:Países de África

Sheet Fronteras
A1: Frontera | B1: X | C1: Y | D1: Ancho | E1: Alto | F1: Centro X | G1: Centro Y | H1: Distancia | I1: Bandera | J1: Fila
A2: Angola | B2: 147.8135376 | C2: 198.7542572 | D2: 51.71669388 | E2: 64.88023376 | F2: =TablaFronteras[[#This Row],[X]]+TablaFronteras[[#This Row],[Ancho]]/2 -> 173.6718845 | G2: =TablaFronteras[[#This Row],[Y]]+TablaFronteras[[#This Row],[Alto]]/2 -> 231.1943741 | H2: =IF(AND(TablaFronteras[[#This Row],[X]]<miX,miX<TablaFronteras[[#This Row],[X]]+TablaFronteras[[#This Row],[Ancho]],TablaFronteras[[#This Row],[Y]]<miY,miY<TablaFronteras[[#This Row],[Y]]+TablaFronteras[[#This Row],[Alto]]),SQRT((TablaFronteras[[#This Row],[Centro X]]-miX)^2+(TablaFronteras[[#This Row],[Centro Y]]-miY)^2),"") ->  | J2: =MATCH(TablaFronteras[[#This Row],[Frontera]]&"*",Datos[Nombre],0) -> 1
A3: Argelia | B3: 65.1521225 | C3: 5.943622112 | D3: 83.45779419 | E3: 82.24449158 | F3: =TablaFronteras[[#This Row],[X]]+TablaFronteras[[#This Row],[Ancho]]/2 -> 106.8810196 | G3: =TablaFronteras[[#This Row],[Y]]+TablaFronteras[[#This Row],[Alto]]/2 -> 47.0658679 | H3: =IF(AND(TablaFronteras[[#This Row],[X]]<miX,miX<TablaFronteras[[#This Row],[X]]+TablaFronteras[[#This Row],[Ancho]],TablaFronteras[[#This Row],[Y]]<miY,miY<TablaFronteras[[#This Row],[Y]]+TablaFronteras[[#This Row],[Alto]]),SQRT((TablaFronteras[[#This Row],[Centro X]]-miX)^2+(TablaFronteras[[#This Row],[Centro Y]]-miY)^2),"") ->  | J3: =MATCH(TablaFronteras[[#This Row],[Frontera]]&"*",Datos[Nombre],0) -> 2
A4: Benín | B4: 102.6997604 | C4: 119.929451 | D4: 12.90724373 | E4: 29.19181061 | F4: =TablaFronteras[[#This Row],[X]]+TablaFronteras[[#This Row],[Ancho]]/2 -> 109.1533823 | G4: =TablaFronteras[[#This Row],[Y]]+TablaFronteras[[#This Row],[Alto]]/2 -> 134.5253563 | H4: =IF(AND(TablaFronteras[[#This Row],[X]]<miX,miX<TablaFronteras[[#This Row],[X]]+TablaFronteras[[#This Row],[Ancho]],TablaFronteras[[#This Row],[Y]]<miY,miY<TablaFronteras[[#This Row],[Y]]+TablaFronteras[[#This Row],[Alto]]),SQRT((TablaFronteras[[#This Row],[Centro X]]-miX)^2+(TablaFronteras[[#This Row],[Centro Y]]-miY)^2),"") ->  | J4: =MATCH(TablaFronteras[[#This Row],[Frontera]]&"*",Datos[Nombre],0) -> 3
A5: Botsuana | B5: 181.5860596 | C5: 262.4590454 | D5: 37.9719696 | E5: 43.00921249 | F5: =TablaFronteras[[#This Row],[X]]+TablaFronteras[[#This Row],[Ancho]]/2 -> 200.5720444 | G5: =TablaFronteras[[#This Row],[Y]]+TablaFronteras[[#This Row],[Alto]]/2 -> 283.9636517 | H5: =IF(AND(TablaFronteras[[#This Row],[X]]<miX,miX<TablaFronteras[[#This Row],[X]]+TablaFronteras[[#This Row],[Ancho]],TablaFronteras[[#This Row],[Y]]<miY,miY<TablaFronteras[[#This Row],[Y]]+TablaFronteras[[#This Row],[Alto]]),SQRT((TablaFronteras[[#This Row],[Centro X]]-miX)^2+(TablaFronteras[[#This Row],[Centro Y]]-miY)^2),"") ->  | J5: =MATCH(TablaFronteras[[#This Row],[Frontera]]&"*",Datos[Nombre],0) -> 4
A6: Burkina Faso | B6: 76.20015717 | C6: 106.9977951 | D6: 33.15236282 | E6: 27.30480385 | F6: =TablaFronteras[[#This Row],[X]]+TablaFronteras[[#This Row],[Ancho]]/2 -> 92.77633858 | G6: =TablaFronteras[[#This Row],[Y]]+TablaFronteras[[#This Row],[Alto]]/2 -> 120.650197 | H6: =IF(AND(TablaFronteras[[#This Row],[X]]<miX,miX<TablaFronteras[[#This Row],[X]]+TablaFronteras[[#This Row],[Ancho]],TablaFronteras[[#This Row],[Y]]<miY,miY<TablaFronteras[[#This Row],[Y]]+TablaFronteras[[#This Row],[Alto]]),SQRT((TablaFronteras[[#This Row],[Centro X]]-miX)^2+(TablaFronteras[[#This Row],[Centro Y]]-miY)^2),"") ->  | J6: =MATCH(TablaFronteras[[#This Row],[Frontera]]&"*",Datos[Nombre],0) -> 5
A7: Burundi | B7: 219.905899 | C7: 188.7763062 | D7: 7.698897839 | E7: 10.16559029 | F7: =TablaFronteras[[#This Row],[X]]+TablaFronteras[[#This Row],[Ancho]]/2 -> 223.755348 | G7: =TablaFronteras[[#This Row],[Y]]+TablaFronteras[[#This Row],[Alto]]/2 -> 193.8591013 | H7: =IF(AND(TablaFronteras[[#This Row],[X]]<miX,miX<TablaFronteras[[#This Row],[X]]+TablaFronteras[[#This Row],[Ancho]],TablaFronteras[[#This Row],[Y]]<miY,miY<TablaFronteras[[#This Row],[Y]]+TablaFronteras[[#This Row],[Alto]]),SQRT((TablaFronteras[[#This Row],[Centro X]]-miX)^2+(TablaFronteras[[#This Row],[Centro Y]]-miY)^2),"") ->  | J7: =MATCH(TablaFronteras[[#This Row],[Frontera]]&"*",Datos[Nombre],0) -> 6
A8: Cabo Verde | B8: 4.5 | C8: 101.4883499 | D8: 7.117637634 | E8: 7.577637672 | F8: =TablaFronteras[[#This Row],[X]]+TablaFronteras[[#This Row],[Ancho]]/2 -> 8.058818817 | G8: =TablaFronteras[[#This Row],[Y]]+TablaFronteras[[#This Row],[Alto]]/2 -> 105.2771688 | H8: =IF(AND(TablaFronteras[[#This Row],[X]]<miX,miX<TablaFronteras[[#This Row],[X]]+TablaFronteras[[#This Row],[Ancho]],TablaFronteras[[#This Row],[Y]]<miY,miY<TablaFronteras[[#This Row],[Y]]+TablaFronteras[[#This Row],[Alto]]),SQRT((TablaFronteras[[#This Row],[Centro X]]-miX)^2+(TablaFronteras[[#This Row],[Centro Y]]-miY)^2),"") ->  | J8: =MATCH(TablaFronteras[[#This Row],[Frontera]]&"*",Datos[Nombre],0) -> 7
A9: Camerún | B9: 134.3457489 | C9: 116.6275558 | D9: 32.35126114 | E9: 53.95220566 | F9: =TablaFronteras[[#This Row],[X]]+TablaFronteras[[#This Row],[Ancho]]/2 -> 150.5213795 | G9: =TablaFronteras[[#This Row],[Y]]+TablaFronteras[[#This Row],[Alto]]/2 -> 143.6036587 | H9: =IF(AND(TablaFronteras[[#This Row],[X]]<miX,miX<TablaFronteras[[#This Row],[X]]+TablaFronteras[[#This Row],[Ancho]],TablaFronteras[[#This Row],[Y]]<miY,miY<TablaFronteras[[#This Row],[Y]]+TablaFronteras[[#This Row],[Alto]]),SQRT((TablaFronteras[[#This Row],[Centro X]]-miX)^2+(TablaFronteras[[#This Row],[Centro Y]]-miY)^2),"") ->  | J9: =MATCH(TablaFronteras[[#This Row],[Frontera]]&"*",Datos[Nombre],0) -> 8
A10: Chad | B10: 154.9924469 | C10: 67.05551147 | D10: 43.91047287 | E10: 76.18708801 | F10: =TablaFronteras[[#This Row],[X]]+TablaFronteras[[#This Row],[Ancho]]/2 -> 176.9476833 | G10: =TablaFronteras[[#This Row],[Y]]+TablaFronteras[[#This Row],[Alto]]/2 -> 105.1490555 | H10: =IF(AND(TablaFronteras[[#This Row],[X]]<miX,miX<TablaFronteras[[#This Row],[X]]+TablaFronteras[[#This Row],[Ancho]],TablaFronteras[[#This Row],[Y]]<miY,miY<TablaFronteras[[#This Row],[Y]]+TablaFronteras[[#This Row],[Alto]]),SQRT((TablaFronteras[[#This Row],[Centro X]]-miX)^2+(TablaFronteras[[#This Row],[Centro Y]]-miY)^2),"") ->  | J10: =MATCH(TablaFronteras[[#This Row],[Frontera]]&"*",Datos[Nombre],0) -> 9
A11: Comoras | B11: 281.5828247 | C11: 235.1208649 | D11: 3.571732283 | E11: 3.193385839 | F11: =TablaFronteras[[#This Row],[X]]+TablaFronteras[[#This Row],[Ancho]]/2 -> 283.3686908 | G11: =TablaFronteras[[#This Row],[Y]]+TablaFronteras[[#This Row],[Alto]]/2 -> 236.7175578 | H11: =IF(AND(TablaFronteras[[#This Row],[X]]<miX,miX<TablaFronteras[[#This Row],[X]]+TablaFronteras[[#This Row],[Ancho]],TablaFronteras[[#This Row],[Y]]<miY,miY<TablaFronteras[[#This Row],[Y]]+TablaFronteras[[#This Row],[Alto]]),SQRT((TablaFronteras[[#This Row],[Centro X]]-miX)^2+(TablaFronteras[[#This Row],[Centro Y]]-miY)^2),"") ->  | J11: =MATCH(TablaFronteras[[#This Row],[Frontera]]&"*",Datos[Nombre],0) -> 10
A12: Costa de Marfil | B12: 63.04968643 | C12: 127.8325195 | D12: 25.77196884 | E12: 30.12440872 | F12: =TablaFronteras[[#This Row],[X]]+TablaFronteras[[#This Row],[Ancho]]/2 -> 75.93567085 | G12: =TablaFronteras[[#This Row],[Y]]+TablaFronteras[[#This Row],[Alto]]/2 -> 142.8947239 | H12: =IF(AND(TablaFronteras[[#This Row],[X]]<miX,miX<TablaFronteras[[#This Row],[X]]+TablaFronteras[[#This Row],[Ancho]],TablaFronteras[[#This Row],[Y]]<miY,miY<TablaFronteras[[#This Row],[Y]]+TablaFronteras[[#This Row],[Alto]]),SQRT((TablaFronteras[[#This Row],[Centro X]]-miX)^2+(TablaFronteras[[#This Row],[Centro Y]]-miY)^2),"") ->  | J12: =MATCH(TablaFronteras[[#This Row],[Frontera]]&"*",Datos[Nombre],0) -> 11
A13: Egipto | B13: 200.164093 | C13: 28.91314888 | D13: 45.7171669 | E13: 46.28291321 | F13: =TablaFronteras[[#This Row],[X]]+TablaFronteras[[#This Row],[Ancho]]/2 -> 223.0226765 | G13: =TablaFronteras[[#This Row],[Y]]+TablaFronteras[[#This Row],[Alto]]/2 -> 52.05460548 | H13: =IF(AND(TablaFronteras[[#This Row],[X]]<miX,miX<TablaFronteras[[#This Row],[X]]+TablaFronteras[[#This Row],[Ancho]],TablaFronteras[[#This Row],[Y]]<miY,miY<TablaFronteras[[#This Row],[Y]]+TablaFronteras[[#This Row],[Alto]]),SQRT((TablaFronteras[[#This Row],[Centro X]]-miX)^2+(TablaFronteras[[#This Row],[Centro Y]]-miY)^2),"") ->  | J13: =MATCH(TablaFronteras[[#This Row],[Frontera]]&"*",Datos[Nombre],0) -> 12
A14: Eritrea | B14: 246.6374054 | C14: 94.04685211 | D14: 26.88275528 | E14: 26.9881897 | F14: =TablaFronteras[[#This Row],[X]]+TablaFronteras[[#This Row],[Ancho]]/2 -> 260.078783 | G14: =TablaFronteras[[#This Row],[Y]]+TablaFronteras[[#This Row],[Alto]]/2 -> 107.540947 | H14: =IF(AND(TablaFronteras[[#This Row],[X]]<miX,miX<TablaFronteras[[#This Row],[X]]+TablaFronteras[[#This Row],[Ancho]],TablaFronteras[[#This Row],[Y]]<miY,miY<TablaFronteras[[#This Row],[Y]]+TablaFronteras[[#This Row],[Alto]]),SQRT((TablaFronteras[[#This Row],[Centro X]]-miX)^2+(TablaFronteras[[#This Row],[Centro Y]]-miY)^2),"") ->  | J14: =MATCH(TablaFronteras[[#This Row],[Frontera]]&"*",Datos[Nombre],0) -> 13
A15: Etiopía | B15: 236.5232239 | C15: 107.9751205 | D15: 66.18039703 | E15: 54.219841 | F15: =TablaFronteras[[#This Row],[X]]+TablaFronteras[[#This Row],[Ancho]]/2 -> 269.6134224 | G15: =TablaFronteras[[#This Row],[Y]]+TablaFronteras[[#This Row],[Alto]]/2 -> 135.085041 | H15: =IF(AND(TablaFronteras[[#This Row],[X]]<miX,miX<TablaFronteras[[#This Row],[X]]+TablaFronteras[[#This Row],[Ancho]],TablaFronteras[[#This Row],[Y]]<miY,miY<TablaFronteras[[#This Row],[Y]]+TablaFronteras[[#This Row],[Alto]]),SQRT((TablaFronteras[[#This Row],[Centro X]]-miX)^2+(TablaFronteras[[#This Row],[Centro Y]]-miY)^2),"") ->  | J15: =MATCH(TablaFronteras[[#This Row],[Frontera]]&"*",Datos[Nombre],0) -> 14
A16: Gabón | B16: 135.2848053 | C16: 167.2866974 | D16: 24.32700729 | E16: 29.23866081 | F16: =TablaFronteras[[#This Row],[X]]+TablaFronteras[[#This Row],[Ancho]]/2 -> 147.4483089 | G16: =TablaFronteras[[#This Row],[Y]]+TablaFronteras[[#This Row],[Alto]]/2 -> 181.9060278 | H16: =IF(AND(TablaFronteras[[#This Row],[X]]<miX,miX<TablaFronteras[[#This Row],[X]]+TablaFronteras[[#This Row],[Ancho]],TablaFronteras[[#This Row],[Y]]<miY,miY<TablaFronteras[[#This Row],[Y]]+TablaFronteras[[#This Row],[Alto]]),SQRT((TablaFronteras[[#This Row],[Centro X]]-miX)^2+(TablaFronteras[[#This Row],[Centro Y]]-miY)^2),"") ->  | J16: =MATCH(TablaFronteras[[#This Row],[Frontera]]&"*",Datos[Nombre],0) -> 15
A17: Gambia | B17: 28.20133781 | C17: 113.0748825 | D17: 12.59913349 | E17: 3.651653528 | F17: =TablaFronteras[[#This Row],[X]]+TablaFronteras[[#This Row],[Ancho]]/2 -> 34.50090456 | G17: =TablaFronteras[[#This Row],[Y]]+TablaFronteras[[#This Row],[Alto]]/2 -> 114.9007093 | H17: =IF(AND(TablaFronteras[[#This Row],[X]]<miX,miX<TablaFronteras[[#This Row],[X]]+TablaFronteras[[#This Row],[Ancho]],TablaFronteras[[#This Row],[Y]]<miY,miY<TablaFronteras[[#This Row],[Y]]+TablaFronteras[[#This Row],[Alto]]),SQRT((TablaFronteras[[#This Row],[Centro X]]-miX)^2+(TablaFronteras[[#This Row],[Centro Y]]-miY)^2),"") ->  | J17: =MATCH(TablaFronteras[[#This Row],[Frontera]]&"*",Datos[Nombre],0) -> 16
A18: Ghana | B18: 85.73755646 | C18: 125.9851151 | D18: 18.56385803 | E18: 30.19314957 | F18: =TablaFronteras[[#This Row],[X]]+TablaFronteras[[#This Row],[Ancho]]/2 -> 95.01948547 | G18: =TablaFronteras[[#This Row],[Y]]+TablaFronteras[[#This Row],[Alto]]/2 -> 141.0816898 | H18: =IF(AND(TablaFronteras[[#This Row],[X]]<miX,miX<TablaFronteras[[#This Row],[X]]+TablaFronteras[[#This Row],[Ancho]],TablaFronteras[[#This Row],[Y]]<miY,miY<TablaFronteras[[#This Row],[Y]]+TablaFronteras[[#This Row],[Alto]]),SQRT((TablaFronteras[[#This Row],[Centro X]]-miX)^2+(TablaFronteras[[#This Row],[Centro Y]]-miY)^2),"") ->  | J18: =MATCH(TablaFronteras[[#This Row],[Frontera]]&"*",Datos[Nombre],0) -> 17
A19: Guinea | B19: 35.31204605 | C19: 118.5802383 | D19: 31.86543274 | E19: 26.25496101 | F19: =TablaFronteras[[#This Row],[X]]+TablaFronteras[[#This Row],[Ancho]]/2 -> 51.24476242 | G19: =TablaFronteras[[#This Row],[Y]]+TablaFronteras[[#This Row],[Alto]]/2 -> 131.7077188 | H19: =IF(AND(TablaFronteras[[#This Row],[X]]<miX,miX<TablaFronteras[[#This Row],[X]]+TablaFronteras[[#This Row],[Ancho]],TablaFronteras[[#This Row],[Y]]<miY,miY<TablaFronteras[[#This Row],[Y]]+TablaFronteras[[#This Row],[Alto]]),SQRT((TablaFronteras[[#This Row],[Centro X]]-miX)^2+(TablaFronteras[[#This Row],[Centro Y]]-miY)^2),"") ->  | J19: =MATCH(TablaFronteras[[#This Row],[Frontera]]&"*",Datos[Nombre],0) -> 18
A20: Guinea Ecuatorial | B20: 133.7818146 | C20: 160.5056763 | D20: 12.34244061 | E20: 12.84992123 | F20: =TablaFronteras[[#This Row],[X]]+TablaFronteras[[#This Row],[Ancho]]/2 -> 139.9530349 | G20: =TablaFronteras[[#This Row],[Y]]+TablaFronteras[[#This Row],[Alto]]/2 -> 166.9306369 | H20: =IF(AND(TablaFronteras[[#This Row],[X]]<miX,miX<TablaFronteras[[#This Row],[X]]+TablaFronteras[[#This Row],[Ancho]],TablaFronteras[[#This Row],[Y]]<miY,miY<TablaFronteras[[#This Row],[Y]]+TablaFronteras[[#This Row],[Alto]]),SQRT((TablaFronteras[[#This Row],[Centro X]]-miX)^2+(TablaFronteras[[#This Row],[Centro Y]]-miY)^2),"") ->  | J20: =MATCH(TablaFronteras[[#This Row],[Frontera]]&"*",Datos[Nombre],0) -> 19
A21: Guinea-Bissau | B21: 28.51354408 | C21: 118.5596085 | D21: 12.78921223 | E21: 8.331968307 | F21: =TablaFronteras[[#This Row],[X]]+TablaFronteras[[#This Row],[Ancho]]/2 -> 34.9081502 | G21: =TablaFronteras[[#This Row],[Y]]+TablaFronteras[[#This Row],[Alto]]/2 -> 122.7255926 | H21: =IF(AND(TablaFronteras[[#This Row],[X]]<miX,miX<TablaFronteras[[#This Row],[X]]+TablaFronteras[[#This Row],[Ancho]],TablaFronteras[[#This Row],[Y]]<miY,miY<TablaFronteras[[#This Row],[Y]]+TablaFronteras[[#This Row],[Alto]]),SQRT((TablaFronteras[[#This Row],[Centro X]]-miX)^2+(TablaFronteras[[#This Row],[Centro Y]]-miY)^2),"") ->  | J21: =MATCH(TablaFronteras[[#This Row],[Frontera]]&"*",Datos[Nombre],0) -> 20
A22: Kenia | B22: 240.7968445 | C22: 156.7147217 | D22: 33.35567093 | E22: 43.36322784 | F22: =TablaFronteras[[#This Row],[X]]+TablaFronteras[[#This Row],[Ancho]]/2 -> 257.4746799 | G22: =TablaFronteras[[#This Row],[Y]]+TablaFronteras[[#This Row],[Alto]]/2 -> 178.3963356 | H22: =IF(AND(TablaFronteras[[#This Row],[X]]<miX,miX<TablaFronteras[[#This Row],[X]]+TablaFronteras[[#This Row],[Ancho]],TablaFronteras[[#This Row],[Y]]<miY,miY<TablaFronteras[[#This Row],[Y]]+TablaFronteras[[#This Row],[Alto]]),SQRT((TablaFronteras[[#This Row],[Centro X]]-miX)^2+(TablaFronteras[[#This Row],[Centro Y]]-miY)^2),"") ->  | J22: =MATCH(TablaFronteras[[#This Row],[Frontera]]&"*",Datos[Nombre],0) -> 21
A23: Lesoto | B23: 209.4820404 | C23: 313.5351257 | D23: 9.132125854 | E23: 9.550157547 | F23: =TablaFronteras[[#This Row],[X]]+TablaFronteras[[#This Row],[Ancho]]/2 -> 214.0481033 | G23: =TablaFronteras[[#This Row],[Y]]+TablaFronteras[[#This Row],[Alto]]/2 -> 318.3102045 | H23: =IF(AND(TablaFronteras[[#This Row],[X]]<miX,miX<TablaFronteras[[#This Row],[X]]+TablaFronteras[[#This Row],[Ancho]],TablaFronteras[[#This Row],[Y]]<miY,miY<TablaFronteras[[#This Row],[Y]]+TablaFronteras[[#This Row],[Alto]]),SQRT((TablaFronteras[[#This Row],[Centro X]]-miX)^2+(TablaFronteras[[#This Row],[Centro Y]]-miY)^2),"") ->  | J23: =MATCH(TablaFronteras[[#This Row],[Frontera]]&"*",Datos[Nombre],0) -> 22
A24: Liberia | B24: 49.99149704 | C24: 138.4154358 | D24: 18.16062927 | E24: 19.5000782 | F24: =TablaFronteras[[#This Row],[X]]+TablaFronteras[[#This Row],[Ancho]]/2 -> 59.07181168 | G24: =TablaFronteras[[#This Row],[Y]]+TablaFronteras[[#This Row],[Alto]]/2 -> 148.1654749 | H24: =IF(AND(TablaFronteras[[#This Row],[X]]<miX,miX<TablaFronteras[[#This Row],[X]]+TablaFronteras[[#This Row],[Ancho]],TablaFronteras[[#This Row],[Y]]<miY,miY<TablaFronteras[[#This Row],[Y]]+TablaFronteras[[#This Row],[Alto]]),SQRT((TablaFronteras[[#This Row],[Centro X]]-miX)^2+(TablaFronteras[[#This Row],[Centro Y]]-miY)^2),"") ->  | J24: =MATCH(TablaFronteras[[#This Row],[Frontera]]&"*",Datos[Nombre],0) -> 23
A25: Libia | B25: 137.9009399 | C25: 24.64196777 | D25: 64.74362183 | E25: 61.1379509 | F25: =TablaFronteras[[#This Row],[X]]+TablaFronteras[[#This Row],[Ancho]]/2 -> 170.2727509 | G25: =TablaFronteras[[#This Row],[Y]]+TablaFronteras[[#This Row],[Alto]]/2 -> 55.21094322 | H25: =IF(AND(TablaFronteras[[#This Row],[X]]<miX,miX<TablaFronteras[[#This Row],[X]]+TablaFronteras[[#This Row],[Ancho]],TablaFronteras[[#This Row],[Y]]<miY,miY<TablaFronteras[[#This Row],[Y]]+TablaFronteras[[#This Row],[Alto]]),SQRT((TablaFronteras[[#This Row],[Centro X]]-miX)^2+(TablaFronteras[[#This Row],[Centro Y]]-miY)^2),"") ->  | J25: =MATCH(TablaFronteras[[#This Row],[Frontera]]&"*",Datos[Nombre],0) -> 24
A26: Madagascar | B26: 276.7407837 | C26: 234.7358246 | D26: 35.02590561 | E26: 64.82393646 | F26: =TablaFronteras[[#This Row],[X]]+TablaFronteras[[#This Row],[Ancho]]/2 -> 294.2537365 | G26: =TablaFronteras[[#This Row],[Y]]+TablaFronteras[[#This Row],[Alto]]/2 -> 267.1477928 | H26: =IF(AND(TablaFronteras[[#This Row],[X]]<miX,miX<TablaFronteras[[#This Row],[X]]+TablaFronteras[[#This Row],[Ancho]],TablaFronteras[[#This Row],[Y]]<miY,miY<TablaFronteras[[#This Row],[Y]]+TablaFronteras[[#This Row],[Alto]]),SQRT((TablaFronteras[[#This Row],[Centro X]]-miX)^2+(TablaFronteras[[#This Row],[Centro Y]]-miY)^2),"") ->  | J26: =MATCH(TablaFronteras[[#This Row],[Frontera]]&"*",Datos[Nombre],0) -> 25
A27: Malaui | B27: 234.6229858 | C27: 222.2395325 | D27: 13.23283482 | E27: 37.23858261 | F27: =TablaFronteras[[#This Row],[X]]+TablaFronteras[[#This Row],[Ancho]]/2 -> 241.2394032 | G27: =TablaFronteras[[#This Row],[Y]]+TablaFronteras[[#This Row],[Alto]]/2 -> 240.8588238 | H27: =IF(AND(TablaFronteras[[#This Row],[X]]<miX,miX<TablaFronteras[[#This Row],[X]]+TablaFronteras[[#This Row],[Ancho]],TablaFronteras[[#This Row],[Y]]<miY,miY<TablaFronteras[[#This Row],[Y]]+TablaFronteras[[#This Row],[Alto]]),SQRT((TablaFronteras[[#This Row],[Centro X]]-miX)^2+(TablaFronteras[[#This Row],[Centro Y]]-miY)^2),"") ->  | J27: =MATCH(TablaFronteras[[#This Row],[Frontera]]&"*",Datos[Nombre],0) -> 26
A28: Malí | B28: 46.88685226 | C28: 60.41614151 | D28: 69.28850555 | E28: 70.19456482 | F28: =TablaFronteras[[#This Row],[X]]+TablaFronteras[[#This Row],[Ancho]]/2 -> 81.53110504 | G28: =TablaFronteras[[#This Row],[Y]]+TablaFronteras[[#This Row],[Alto]]/2 -> 95.51342392 | H28: =IF(AND(TablaFronteras[[#This Row],[X]]<miX,miX<TablaFronteras[[#This Row],[X]]+TablaFronteras[[#This Row],[Ancho]],TablaFronteras[[#This Row],[Y]]<miY,miY<TablaFronteras[[#This Row],[Y]]+TablaFronteras[[#This Row],[Alto]]),SQRT((TablaFronteras[[#This Row],[Centro X]]-miX)^2+(TablaFronteras[[#This Row],[Centro Y]]-miY)^2),"") ->  | J28: =MATCH(TablaFronteras[[#This Row],[Frontera]]&"*",Datos[Nombre],0) -> 27
A29: Marruecos | B29: 28.28551102 | C29: 11.62614155 | D29: 68.60314941 | E29: 68.11495972 | F29: =TablaFronteras[[#This Row],[X]]+TablaFronteras[[#This Row],[Ancho]]/2 -> 62.58708572 | G29: =TablaFronteras[[#This Row],[Y]]+TablaFronteras[[#This Row],[Alto]]/2 -> 45.68362141 | H29: =IF(AND(TablaFronteras[[#This Row],[X]]<miX,miX<TablaFronteras[[#This Row],[X]]+TablaFronteras[[#This Row],[Ancho]],TablaFronteras[[#This Row],[Y]]<miY,miY<TablaFronteras[[#This Row],[Y]]+TablaFronteras[[#This Row],[Alto]]),SQRT((TablaFronteras[[#This Row],[Centro X]]-miX)^2+(TablaFronteras[[#This Row],[Centro Y]]-miY)^2),"") ->  | J29: =MATCH(TablaFronteras[[#This Row],[Frontera]]&"*",Datos[Nombre],0) -> 28
A30: Mauricio | B30: 338.5910339 | C30: 274.4159851 | D30: 1.105433106 | E30: 1.63811028 | F30: =TablaFronteras[[#This Row],[X]]+TablaFronteras[[#This Row],[Ancho]]/2 -> 339.1437505 | G30: =TablaFronteras[[#This Row],[Y]]+TablaFronteras[[#This Row],[Alto]]/2 -> 275.2350402 | H30: =IF(AND(TablaFronteras[[#This Row],[X]]<miX,miX<TablaFronteras[[#This Row],[X]]+TablaFronteras[[#This Row],[Ancho]],TablaFronteras[[#This Row],[Y]]<miY,miY<TablaFronteras[[#This Row],[Y]]+TablaFronteras[[#This Row],[Alto]]),SQRT((TablaFronteras[[#This Row],[Centro X]]-miX)^2+(TablaFronteras[[#This Row],[Centro Y]]-miY)^2),"") ->  | J30: =MATCH(TablaFronteras[[#This Row],[Frontera]]&"*",Datos[Nombre],0) -> 29
A31: Mauritania | B31: 28.4533062 | C31: 48.46141815 | D31: 52.13393784 | E31: 60.09456635 | F31: =TablaFronteras[[#This Row],[X]]+TablaFronteras[[#This Row],[Ancho]]/2 -> 54.52027512 | G31: =TablaFronteras[[#This Row],[Y]]+TablaFronteras[[#This Row],[Alto]]/2 -> 78.50870132 | H31: =IF(AND(TablaFronteras[[#This Row],[X]]<miX,miX<TablaFronteras[[#This Row],[X]]+TablaFronteras[[#This Row],[Ancho]],TablaFronteras[[#This Row],[Y]]<miY,miY<TablaFronteras[[#This Row],[Y]]+TablaFronteras[[#This Row],[Alto]]),SQRT((TablaFronteras[[#This Row],[Centro X]]-miX)^2+(TablaFronteras[[#This Row],[Centro Y]]-miY)^2),"") ->  | J31: =MATCH(TablaFronteras[[#This Row],[Frontera]]&"*",Datos[Nombre],0) -> 30
A32: Mozambique | B32: 224.1330719 | C32: 227.7233124 | D32: 44.37700653 | E32: 77.71763611 | F32: =TablaFronteras[[#This Row],[X]]+TablaFronteras[[#This Row],[Ancho]]/2 -> 246.3215752 | G32: =TablaFronteras[[#This Row],[Y]]+TablaFronteras[[#This Row],[Alto]]/2 -> 266.5821304 | H32: =IF(AND(TablaFronteras[[#This Row],[X]]<miX,miX<TablaFronteras[[#This Row],[X]]+TablaFronteras[[#This Row],[Ancho]],TablaFronteras[[#This Row],[Y]]<miY,miY<TablaFronteras[[#This Row],[Y]]+TablaFronteras[[#This Row],[Alto]]),SQRT((TablaFronteras[[#This Row],[Centro X]]-miX)^2+(TablaFronteras[[#This Row],[Centro Y]]-miY)^2),"") ->  | J32: =MATCH(TablaFronteras[[#This Row],[Frontera]]&"*",Datos[Nombre],0) -> 31
A33: Namibia | B33: 147.7468567 | C33: 258.6000061 | D33: 56.07315063 | E33: 56.5138588 | F33: =TablaFronteras[[#This Row],[X]]+TablaFronteras[[#This Row],[Ancho]]/2 -> 175.783432 | G33: =TablaFronteras[[#This Row],[Y]]+TablaFronteras[[#This Row],[Alto]]/2 -> 286.8569355 | H33: =IF(AND(TablaFronteras[[#This Row],[X]]<miX,miX<TablaFronteras[[#This Row],[X]]+TablaFronteras[[#This Row],[Ancho]],TablaFronteras[[#This Row],[Y]]<miY,miY<TablaFronteras[[#This Row],[Y]]+TablaFronteras[[#This Row],[Alto]]),SQRT((TablaFronteras[[#This Row],[Centro X]]-miX)^2+(TablaFronteras[[#This Row],[Centro Y]]-miY)^2),"") ->  | J33: =MATCH(TablaFronteras[[#This Row],[Frontera]]&"*",Datos[Nombre],0) -> 32
A34: Níger | B34: 99.80519867 | C34: 66.71779633 | D34: 64.91197205 | E34: 56.53614044 | F34: =TablaFronteras[[#This Row],[X]]+TablaFronteras[[#This Row],[Ancho]]/2 -> 132.2611847 | G34: =TablaFronteras[[#This Row],[Y]]+TablaFronteras[[#This Row],[Alto]]/2 -> 94.98586655 | H34: =IF(AND(TablaFronteras[[#This Row],[X]]<miX,miX<TablaFronteras[[#This Row],[X]]+TablaFronteras[[#This Row],[Ancho]],TablaFronteras[[#This Row],[Y]]<miY,miY<TablaFronteras[[#This Row],[Y]]+TablaFronteras[[#This Row],[Alto]]),SQRT((TablaFronteras[[#This Row],[Centro X]]-miX)^2+(TablaFronteras[[#This Row],[Centro Y]]-miY)^2),"") ->  | J34: =MATCH(TablaFronteras[[#This Row],[Frontera]]&"*",Datos[Nombre],0) -> 34
A35: Nigeria | B35: 110.5693665 | C35: 112.7236252 | D35: 49.51803207 | E35: 45.66819 | F35: =TablaFronteras[[#This Row],[X]]+TablaFronteras[[#This Row],[Ancho]]/2 -> 135.3283825 | G35: =TablaFronteras[[#This Row],[Y]]+TablaFronteras[[#This Row],[Alto]]/2 -> 135.5577202 | H35: =IF(AND(TablaFronteras[[#This Row],[X]]<miX,miX<TablaFronteras[[#This Row],[X]]+TablaFronteras[[#This Row],[Ancho]],TablaFronteras[[#This Row],[Y]]<miY,miY<TablaFronteras[[#This Row],[Y]]+TablaFronteras[[#This Row],[Alto]]),SQRT((TablaFronteras[[#This Row],[Centro X]]-miX)^2+(TablaFronteras[[#This Row],[Centro Y]]-miY)^2),"") ->  | J35: =MATCH(TablaFronteras[[#This Row],[Frontera]]&"*",Datos[Nombre],0) -> 33
A36: República Centroafricana | B36: 159.0981903 | C36: 126.5698395 | D36: 54.95291519 | E36: 41.3131485 | F36: =TablaFronteras[[#This Row],[X]]+TablaFronteras[[#This Row],[Ancho]]/2 -> 186.5746479 | G36: =TablaFronteras[[#This Row],[Y]]+TablaFronteras[[#This Row],[Alto]]/2 -> 147.2264137 | H36: =IF(AND(TablaFronteras[[#This Row],[X]]<miX,miX<TablaFronteras[[#This Row],[X]]+TablaFronteras[[#This Row],[Ancho]],TablaFronteras[[#This Row],[Y]]<miY,miY<TablaFronteras[[#This Row],[Y]]+TablaFronteras[[#This Row],[Alto]]),SQRT((TablaFronteras[[#This Row],[Centro X]]-miX)^2+(TablaFronteras[[#This Row],[Centro Y]]-miY)^2),"") ->  | J36: =MATCH(TablaFronteras[[#This Row],[Frontera]]&"*",Datos[Nombre],0) -> 35
A37: República del Congo | B37: 145.3130646 | C37: 161.3651123 | D37: 31.64236259 | E37: 40.74118042 | F37: =TablaFronteras[[#This Row],[X]]+TablaFronteras[[#This Row],[Ancho]]/2 -> 161.1342459 | G37: =TablaFronteras[[#This Row],[Y]]+TablaFronteras[[#This Row],[Alto]]/2 -> 181.7357025 | H37: =IF(AND(TablaFronteras[[#This Row],[X]]<miX,miX<TablaFronteras[[#This Row],[X]]+TablaFronteras[[#This Row],[Ancho]],TablaFronteras[[#This Row],[Y]]<miY,miY<TablaFronteras[[#This Row],[Y]]+TablaFronteras[[#This Row],[Alto]]),SQRT((TablaFronteras[[#This Row],[Centro X]]-miX)^2+(TablaFronteras[[#This Row],[Centro Y]]-miY)^2),"") ->  | J37: =MATCH(TablaFronteras[[#This Row],[Frontera]]&"*",Datos[Nombre],0) -> 37
A38: República Democrática del Congo | B38: 149.82724 | C38: 152.335907 | D38: 79.67700958 | E38: 88.43960571 | F38: =TablaFronteras[[#This Row],[X]]+TablaFronteras[[#This Row],[Ancho]]/2 -> 189.6657448 | G38: =TablaFronteras[[#This Row],[Y]]+TablaFronteras[[#This Row],[Alto]]/2 -> 196.5557098 | H38: =IF(AND(TablaFronteras[[#This Row],[X]]<miX,miX<TablaFronteras[[#This Row],[X]]+TablaFronteras[[#This Row],[Ancho]],TablaFronteras[[#This Row],[Y]]<miY,miY<TablaFronteras[[#This Row],[Y]]+TablaFronteras[[#This Row],[Alto]]),SQRT((TablaFronteras[[#This Row],[Centro X]]-miX)^2+(TablaFronteras[[#This Row],[Centro Y]]-miY)^2),"") ->  | J38: =MATCH(TablaFronteras[[#This Row],[Frontera]]&"*",Datos[Nombre],0) -> 36
A39: Ruanda | B39: 219.2778778 | C39: 183.1550446 | D39: 8.444803238 | E39: 7.994330883 | F39: =TablaFronteras[[#This Row],[X]]+TablaFronteras[[#This Row],[Ancho]]/2 -> 223.5002794 | G39: =TablaFronteras[[#This Row],[Y]]+TablaFronteras[[#This Row],[Alto]]/2 -> 187.15221 | H39: =IF(AND(TablaFronteras[[#This Row],[X]]<miX,miX<TablaFronteras[[#This Row],[X]]+TablaFronteras[[#This Row],[Ancho]],TablaFronteras[[#This Row],[Y]]<miY,miY<TablaFronteras[[#This Row],[Y]]+TablaFronteras[[#This Row],[Alto]]),SQRT((TablaFronteras[[#This Row],[Centro X]]-miX)^2+(TablaFronteras[[#This Row],[Centro Y]]-miY)^2),"") ->  | J39: =MATCH(TablaFronteras[[#This Row],[Frontera]]&"*",Datos[Nombre],0) -> 38
A40: Santo Tomé y Príncipe | B40: 127.6621246 | C40: 177.7221985 | D40: 1.105433106 | E40: 1.63811028 | F40: =TablaFronteras[[#This Row],[X]]+TablaFronteras[[#This Row],[Ancho]]/2 -> 128.2148412 | G40: =TablaFronteras[[#This Row],[Y]]+TablaFronteras[[#This Row],[Alto]]/2 -> 178.5412536 | H40: =IF(AND(TablaFronteras[[#This Row],[X]]<miX,miX<TablaFronteras[[#This Row],[X]]+TablaFronteras[[#This Row],[Ancho]],TablaFronteras[[#This Row],[Y]]<miY,miY<TablaFronteras[[#This Row],[Y]]+TablaFronteras[[#This Row],[Alto]]),SQRT((TablaFronteras[[#This Row],[Centro X]]-miX)^2+(TablaFronteras[[#This Row],[Centro Y]]-miY)^2),"") ->  | J40: =MATCH(TablaFronteras[[#This Row],[Frontera]]&"*",Datos[Nombre],0) -> 39
A41: Sáhara Occidental | B41: 28.28551 | C41: 48.55835 | D41: 36.05386 | E41: 31.25417 | F41: =TablaFronteras[[#This Row],[X]]+TablaFronteras[[#This Row],[Ancho]]/2 -> 46.31244 | G41: =TablaFronteras[[#This Row],[Y]]+TablaFronteras[[#This Row],[Alto]]/2 -> 64.185435 | H41: =IF(AND(TablaFronteras[[#This Row],[X]]<miX,miX<TablaFronteras[[#This Row],[X]]+TablaFronteras[[#This Row],[Ancho]],TablaFronteras[[#This Row],[Y]]<miY,miY<TablaFronteras[[#This Row],[Y]]+TablaFronteras[[#This Row],[Alto]]),SQRT((TablaFronteras[[#This Row],[Centro X]]-miX)^2+(TablaFronteras[[#This Row],[Centro Y]]-miY)^2),"") ->  | J41: =MATCH(TablaFronteras[[#This Row],[Frontera]]&"*",Datos[Nombre],0) -> 49
A42: Senegal | B42: 25.60228348 | C42: 99.27480316 | D42: 25.33929062 | E42: 21.02488136 | F42: =TablaFronteras[[#This Row],[X]]+TablaFronteras[[#This Row],[Ancho]]/2 -> 38.27192879 | G42: =TablaFronteras[[#This Row],[Y]]+TablaFronteras[[#This Row],[Alto]]/2 -> 109.7872438 | H42: =IF(AND(TablaFronteras[[#This Row],[X]]<miX,miX<TablaFronteras[[#This Row],[X]]+TablaFronteras[[#This Row],[Ancho]],TablaFronteras[[#This Row],[Y]]<miY,miY<TablaFronteras[[#This Row],[Y]]+TablaFronteras[[#This Row],[Alto]]),SQRT((TablaFronteras[[#This Row],[Centro X]]-miX)^2+(TablaFronteras[[#This Row],[Centro Y]]-miY)^2),"") ->  | J42: =MATCH(TablaFronteras[[#This Row],[Frontera]]&"*",Datos[Nombre],0) -> 40
A43: Sierra Leona | B43: 42.52503967 | C43: 131.3396912 | D43: 12.71015739 | E43: 14.39559078 | F43: =TablaFronteras[[#This Row],[X]]+TablaFronteras[[#This Row],[Ancho]]/2 -> 48.88011837 | G43: =TablaFronteras[[#This Row],[Y]]+TablaFronteras[[#This Row],[Alto]]/2 -> 138.5374866 | H43: =IF(AND(TablaFronteras[[#This Row],[X]]<miX,miX<TablaFronteras[[#This Row],[X]]+TablaFronteras[[#This Row],[Ancho]],TablaFronteras[[#This Row],[Y]]<miY,miY<TablaFronteras[[#This Row],[Y]]+TablaFronteras[[#This Row],[Alto]]),SQRT((TablaFronteras[[#This Row],[Centro X]]-miX)^2+(TablaFronteras[[#This Row],[Centro Y]]-miY)^2),"") ->  | J43: =MATCH(TablaFronteras[[#This Row],[Frontera]]&"*",Datos[Nombre],0) -> 42
A44: Somalia | B44: 266.8637695 | C44: 122.4681091 | D44: 45.4955101 | E44: 64.12456512 | F44: =TablaFronteras[[#This Row],[X]]+TablaFronteras[[#This Row],[Ancho]]/2 -> 289.6115246 | G44: =TablaFronteras[[#This Row],[Y]]+TablaFronteras[[#This Row],[Alto]]/2 -> 154.5303917 | H44: =IF(AND(TablaFronteras[[#This Row],[X]]<miX,miX<TablaFronteras[[#This Row],[X]]+TablaFronteras[[#This Row],[Ancho]],TablaFronteras[[#This Row],[Y]]<miY,miY<TablaFronteras[[#This Row],[Y]]+TablaFronteras[[#This Row],[Alto]]),SQRT((TablaFronteras[[#This Row],[Centro X]]-miX)^2+(TablaFronteras[[#This Row],[Centro Y]]-miY)^2),"") ->  | J44: =MATCH(TablaFronteras[[#This Row],[Frontera]]&"*",Datos[Nombre],0) -> 43
A45: Suazilandia | B45: 224.7205505 | C45: 300.853241 | D45: 5.816456795 | E45: 6.495196819 | F45: =TablaFronteras[[#This Row],[X]]+TablaFronteras[[#This Row],[Ancho]]/2 -> 227.6287789 | G45: =TablaFronteras[[#This Row],[Y]]+TablaFronteras[[#This Row],[Alto]]/2 -> 304.1008394 | H45: =IF(AND(TablaFronteras[[#This Row],[X]]<miX,miX<TablaFronteras[[#This Row],[X]]+TablaFronteras[[#This Row],[Ancho]],TablaFronteras[[#This Row],[Y]]<miY,miY<TablaFronteras[[#This Row],[Y]]+TablaFronteras[[#This Row],[Alto]]),SQRT((TablaFronteras[[#This Row],[Centro X]]-miX)^2+(TablaFronteras[[#This Row],[Centro Y]]-miY)^2),"") ->  | J45: =MATCH(TablaFronteras[[#This Row],[Frontera]]&"*",Datos[Nombre],0) -> 45
A46: Sudáfrica | B46: 166.9289703 | C46: 283.4869995 | D46: 66.11637878 | E46: 58.93370056 | F46: =TablaFronteras[[#This Row],[X]]+TablaFronteras[[#This Row],[Ancho]]/2 -> 199.9871597 | G46: =TablaFronteras[[#This Row],[Y]]+TablaFronteras[[#This Row],[Alto]]/2 -> 312.9538498 | H46: =IF(AND(TablaFronteras[[#This Row],[X]]<miX,miX<TablaFronteras[[#This Row],[X]]+TablaFronteras[[#This Row],[Ancho]],TablaFronteras[[#This Row],[Y]]<miY,miY<TablaFronteras[[#This Row],[Y]]+TablaFronteras[[#This Row],[Alto]]),SQRT((TablaFronteras[[#This Row],[Centro X]]-miX)^2+(TablaFronteras[[#This Row],[Centro Y]]-miY)^2),"") ->  | J46: =MATCH(TablaFronteras[[#This Row],[Frontera]]&"*",Datos[Nombre],0) -> 46
A47: Sudán | B47: 190.0182648 | C47: 68.38937378 | D47: 68.55000305 | E47: 66.20487976 | F47: =TablaFronteras[[#This Row],[X]]+TablaFronteras[[#This Row],[Ancho]]/2 -> 224.2932663 | G47: =TablaFronteras[[#This Row],[Y]]+TablaFronteras[[#This Row],[Alto]]/2 -> 101.4918137 | H47: =IF(AND(TablaFronteras[[#This Row],[X]]<miX,miX<TablaFronteras[[#This Row],[X]]+TablaFronteras[[#This Row],[Ancho]],TablaFronteras[[#This Row],[Y]]<miY,miY<TablaFronteras[[#This Row],[Y]]+TablaFronteras[[#This Row],[Alto]]),SQRT((TablaFronteras[[#This Row],[Centro X]]-miX)^2+(TablaFronteras[[#This Row],[Centro Y]]-miY)^2),"") ->  | J47: =MATCH(TablaFronteras[[#This Row],[Frontera]]&"*",Datos[Nombre],0) -> 47
A48: Sudán del Sur | B48: 197.0934601 | C48: 120.2507095 | D48: 51.90574646 | E48: 41.51779556 | F48: =TablaFronteras[[#This Row],[X]]+TablaFronteras[[#This Row],[Ancho]]/2 -> 223.0463333 | G48: =TablaFronteras[[#This Row],[Y]]+TablaFronteras[[#This Row],[Alto]]/2 -> 141.0096073 | H48: =IF(AND(TablaFronteras[[#This Row],[X]]<miX,miX<TablaFronteras[[#This Row],[X]]+TablaFronteras[[#This Row],[Ancho]],TablaFronteras[[#This Row],[Y]]<miY,miY<TablaFronteras[[#This Row],[Y]]+TablaFronteras[[#This Row],[Alto]]),SQRT((TablaFronteras[[#This Row],[Centro X]]-miX)^2+(TablaFronteras[[#This Row],[Centro Y]]-miY)^2),"") ->  | J48: =MATCH(TablaFronteras[[#This Row],[Frontera]]&"*",Datos[Nombre],0) -> 48
A49: Tanzania | B49: 222.2639313 | C49: 182.778183 | D49: 45.07622147 | E49: 50.82031631 | F49: =TablaFronteras[[#This Row],[X]]+TablaFronteras[[#This Row],[Ancho]]/2 -> 244.802042 | G49: =TablaFronteras[[#This Row],[Y]]+TablaFronteras[[#This Row],[Alto]]/2 -> 208.1883411 | H49: =IF(AND(TablaFronteras[[#This Row],[X]]<miX,miX<TablaFronteras[[#This Row],[X]]+TablaFronteras[[#This Row],[Ancho]],TablaFronteras[[#This Row],[Y]]<miY,miY<TablaFronteras[[#This Row],[Y]]+TablaFronteras[[#This Row],[Alto]]),SQRT((TablaFronteras[[#This Row],[Centro X]]-miX)^2+(TablaFronteras[[#This Row],[Centro Y]]-miY)^2),"") ->  | J49: =MATCH(TablaFronteras[[#This Row],[Frontera]]&"*",Datos[Nombre],0) -> 50
A50: Togo | B50: 98.7707901 | C50: 125.9264603 | D50: 8.084487915 | E50: 23.75283432 | F50: =TablaFronteras[[#This Row],[X]]+TablaFronteras[[#This Row],[Ancho]]/2 -> 102.8130341 | G50: =TablaFronteras[[#This Row],[Y]]+TablaFronteras[[#This Row],[Alto]]/2 -> 137.8028774 | H50: =IF(AND(TablaFronteras[[#This Row],[X]]<miX,miX<TablaFronteras[[#This Row],[X]]+TablaFronteras[[#This Row],[Ancho]],TablaFronteras[[#This Row],[Y]]<miY,miY<TablaFronteras[[#This Row],[Y]]+TablaFronteras[[#This Row],[Alto]]),SQRT((TablaFronteras[[#This Row],[Centro X]]-miX)^2+(TablaFronteras[[#This Row],[Centro Y]]-miY)^2),"") ->  | J50: =MATCH(TablaFronteras[[#This Row],[Frontera]]&"*",Datos[Nombre],0) -> 51
A51: Túnez | B51: 129.9748077 | C51: 8.010000229 | D51: 16.30960655 | E51: 29.57393646 | F51: =TablaFronteras[[#This Row],[X]]+TablaFronteras[[#This Row],[Ancho]]/2 -> 138.129611 | G51: =TablaFronteras[[#This Row],[Y]]+TablaFronteras[[#This Row],[Alto]]/2 -> 22.79696846 | H51: =IF(AND(TablaFronteras[[#This Row],[X]]<miX,miX<TablaFronteras[[#This Row],[X]]+TablaFronteras[[#This Row],[Ancho]],TablaFronteras[[#This Row],[Y]]<miY,miY<TablaFronteras[[#This Row],[Y]]+TablaFronteras[[#This Row],[Alto]]),SQRT((TablaFronteras[[#This Row],[Centro X]]-miX)^2+(TablaFronteras[[#This Row],[Centro Y]]-miY)^2),"") ->  | J51: =MATCH(TablaFronteras[[#This Row],[Frontera]]&"*",Datos[Nombre],0) -> 52
A52: Uganda | B52: 222.0911865 | C52: 158.6583405 | D52: 23.38118172 | E52: 26.36976433 | F52: =TablaFronteras[[#This Row],[X]]+TablaFronteras[[#This Row],[Ancho]]/2 -> 233.7817774 | G52: =TablaFronteras[[#This Row],[Y]]+TablaFronteras[[#This Row],[Alto]]/2 -> 171.8432226 | H52: =IF(AND(TablaFronteras[[#This Row],[X]]<miX,miX<TablaFronteras[[#This Row],[X]]+TablaFronteras[[#This Row],[Ancho]],TablaFronteras[[#This Row],[Y]]<miY,miY<TablaFronteras[[#This Row],[Y]]+TablaFronteras[[#This Row],[Alto]]),SQRT((TablaFronteras[[#This Row],[Centro X]]-miX)^2+(TablaFronteras[[#This Row],[Centro Y]]-miY)^2),"") ->  | J52: =MATCH(TablaFronteras[[#This Row],[Frontera]]&"*",Datos[Nombre],0) -> 53
A53: Yibuti | B53: 267.7643433 | C53: 118.4174042 | D53: 4.565039158 | E53: 8.417952538 | F53: =TablaFronteras[[#This Row],[X]]+TablaFronteras[[#This Row],[Ancho]]/2 -> 270.0468628 | G53: =TablaFronteras[[#This Row],[Y]]+TablaFronteras[[#This Row],[Alto]]/2 -> 122.6263804 | H53: =IF(AND(TablaFronteras[[#This Row],[X]]<miX,miX<TablaFronteras[[#This Row],[X]]+TablaFronteras[[#This Row],[Ancho]],TablaFronteras[[#This Row],[Y]]<miY,miY<TablaFronteras[[#This Row],[Y]]+TablaFronteras[[#This Row],[Alto]]),SQRT((TablaFronteras[[#This Row],[Centro X]]-miX)^2+(TablaFronteras[[#This Row],[Centro Y]]-miY)^2),"") ->  | J53: =MATCH(TablaFronteras[[#This Row],[Frontera]]&"*",Datos[Nombre],0) -> 54
A54: Zambia | B54: 190.5701599 | C54: 216.2756653 | D54: 48.43811035 | E54: 47.1962204 | F54: =TablaFronteras[[#This Row],[X]]+TablaFronteras[[#This Row],[Ancho]]/2 -> 214.7892151 | G54: =TablaFronteras[[#This Row],[Y]]+TablaFronteras[[#This Row],[Alto]]/2 -> 239.8737755 | H54: =IF(AND(TablaFronteras[[#This Row],[X]]<miX,miX<TablaFronteras[[#This Row],[X]]+TablaFronteras[[#This Row],[Ancho]],TablaFronteras[[#This Row],[Y]]<miY,miY<TablaFronteras[[#This Row],[Y]]+TablaFronteras[[#This Row],[Alto]]),SQRT((TablaFronteras[[#This Row],[Centro X]]-miX)^2+(TablaFronteras[[#This Row],[Centro Y]]-miY)^2),"") ->  | J54: =MATCH(TablaFronteras[[#This Row],[Frontera]]&"*",Datos[Nombre],0) -> 55
A55: Zimbabue | B55: 203.9297638 | C55: 252.2271729 | D55: 31.55330658 | E55: 32.77220535 | F55: =TablaFronteras[[#This Row],[X]]+TablaFronteras[[#This Row],[Ancho]]/2 -> 219.7064171 | G55: =TablaFronteras[[#This Row],[Y]]+TablaFronteras[[#This Row],[Alto]]/2 -> 268.6132755 | H55: =IF(AND(TablaFronteras[[#This Row],[X]]<miX,miX<TablaFronteras[[#This Row],[X]]+TablaFronteras[[#This Row],[Ancho]],TablaFronteras[[#This Row],[Y]]<miY,miY<TablaFronteras[[#This Row],[Y]]+TablaFronteras[[#This Row],[Alto]]),SQRT((TablaFronteras[[#This Row],[Centro X]]-miX)^2+(TablaFronteras[[#This Row],[Centro Y]]-miY)^2),"") ->  | J55: =MATCH(TablaFronteras[[#This Row],[Frontera]]&"*",Datos[Nombre],0) -> 56
A56: Total | H56: =SUBTOTAL(105,TablaFronteras[Distancia]) -> 0
A62: Frontera sin definir | B62: X | C62: Y | D62: Ancho | E62: Alto | F62: Centro X | G62: Centro Y | H62: Distancia | I62: Bandera | J62: Fila
A63: Mayotte | F63: =TablaMásFronteras[[#This Row],[X]]+TablaMásFronteras[[#This Row],[Ancho]]/2 -> 0 | G63: =TablaMásFronteras[[#This Row],[Y]]+TablaMásFronteras[[#This Row],[Alto]]/2 -> 0 | H63: =IF(AND(TablaMásFronteras[[#This Row],[X]]<miX,miX<TablaMásFronteras[[#This Row],[X]]+TablaMásFronteras[[#This Row],[Ancho]],TablaMásFronteras[[#This Row],[Y]]<miY,miY<TablaMásFronteras[[#This Row],[Y]]+TablaMásFronteras[[#This Row],[Alto]]),SQRT((TablaMásFronteras[[#This Row],[Centro X]]-miX)^2+(TablaMásFronteras[[#This Row],[Centro Y]]-miY)^2),"") ->  | J63: =MATCH(TablaMásFronteras[[#This Row],[Frontera sin definir]]&"*",Datos[Nombre],0) -> 
A64: Sáhara Occidental | B64: 28.28551 | C64: 48.55835 | D64: 36.05386 | E64: 31.25417 | F64: =TablaMásFronteras[[#This Row],[X]]+TablaMásFronteras[[#This Row],[Ancho]]/2 -> 46.31244 | G64: =TablaMásFronteras[[#This Row],[Y]]+TablaMásFronteras[[#This Row],[Alto]]/2 -> 64.185435 | H64: =IF(AND(TablaMásFronteras[[#This Row],[X]]<miX,miX<TablaMásFronteras[[#This Row],[X]]+TablaMásFronteras[[#This Row],[Ancho]],TablaMásFronteras[[#This Row],[Y]]<miY,miY<TablaMásFronteras[[#This Row],[Y]]+TablaMásFronteras[[#This Row],[Alto]]),SQRT((TablaMásFronteras[[#This Row],[Centro X]]-miX)^2+(TablaMásFronteras[[#This Row],[Centro Y]]-miY)^2),"") ->  | J64: =MATCH(TablaMásFronteras[[#This Row],[Frontera sin definir]]&"*",Datos[Nombre],0) -> 49
A65: Reunión | F65: =TablaMásFronteras[[#This Row],[X]]+TablaMásFronteras[[#This Row],[Ancho]]/2 -> 0 | G65: =TablaMásFronteras[[#This Row],[Y]]+TablaMásFronteras[[#This Row],[Alto]]/2 -> 0 | H65: =IF(AND(TablaMásFronteras[[#This Row],[X]]<miX,miX<TablaMásFronteras[[#This Row],[X]]+TablaMásFronteras[[#This Row],[Ancho]],TablaMásFronteras[[#This Row],[Y]]<miY,miY<TablaMásFronteras[[#This Row],[Y]]+TablaMásFronteras[[#This Row],[Alto]]),SQRT((TablaMásFronteras[[#This Row],[Centro X]]-miX)^2+(TablaMásFronteras[[#This Row],[Centro Y]]-miY)^2),"") ->  | J65: =MATCH(TablaMásFronteras[[#This Row],[Frontera sin definir]]&"*",Datos[Nombre],0) -> 
A66: Santa Elena | F66: =TablaMásFronteras[[#This Row],[X]]+TablaMásFronteras[[#This Row],[Ancho]]/2 -> 0 | G66: =TablaMásFronteras[[#This Row],[Y]]+TablaMásFronteras[[#This Row],[Alto]]/2 -> 0 | H66: =IF(AND(TablaMásFronteras[[#This Row],[X]]<miX,miX<TablaMásFronteras[[#This Row],[X]]+TablaMásFronteras[[#This Row],[Ancho]],TablaMásFronteras[[#This Row],[Y]]<miY,miY<TablaMásFronteras[[#This Row],[Y]]+TablaMásFronteras[[#This Row],[Alto]]),SQRT((TablaMásFronteras[[#This Row],[Centro X]]-miX)^2+(TablaMásFronteras[[#This Row],[Centro Y]]-miY)^2),"") ->  | J66: =MATCH(TablaMásFronteras[[#This Row],[Frontera sin definir]]&"*",Datos[Nombre],0) -> 
A67: Seychelles | F67: =TablaMásFronteras[[#This Row],[X]]+TablaMásFronteras[[#This Row],[Ancho]]/2 -> 0 | G67: =TablaMásFronteras[[#This Row],[Y]]+TablaMásFronteras[[#This Row],[Alto]]/2 -> 0 | H67: =IF(AND(TablaMásFronteras[[#This Row],[X]]<miX,miX<TablaMásFronteras[[#This Row],[X]]+TablaMásFronteras[[#This Row],[Ancho]],TablaMásFronteras[[#This Row],[Y]]<miY,miY<TablaMásFronteras[[#This Row],[Y]]+TablaMásFronteras[[#This Row],[Alto]]),SQRT((TablaMásFronteras[[#This Row],[Centro X]]-miX)^2+(TablaMásFronteras[[#This Row],[Centro Y]]-miY)^2),"") ->  | J67: =MATCH(TablaMásFronteras[[#This Row],[Frontera sin definir]]&"*",Datos[Nombre],0) -> 41
A68: Total | H68: =SUBTOTAL(105,TablaMásFronteras[Distancia]) -> 0

Sheet Datos
A1: Nombre | B1: Nombre oficial | C1: Capital | D1: Moneda | E1: Idioma oficial | F1: Forma de Gobierno | G1: Superficie (km²) | H1: Población | I1: Población (2018) | J1: PIB per cápita (US$)
A2: Angola | B2: República de Angola | C2: Luanda | D2: Kwanza | E2: Portugués | F2: República presidencial | G2: 1246789 | H2: 36677682 | I2: 24300000 | J2: 6881
A3: Argelia | B3: República Argelina Democrática y Popular | C3: Argel | D3: Dinar argelino | E3: Árabe | F3: República semipresidencial | G3: 2381740 | H3: 46778820 | I3: 42200000 | J3: 16085
A4: Benín | B4: República de Benín | C4: Porto Novo | D4: Franco CFA de África Occidental | E4: Francés | F4: República presidencial | G4: 112622 | H4: 13259644 | I4: 10598482 | J4: 2184
A5: Botsuana | B5: República de Botsuana | C5: Gaborone | D5: Pula | E5: Inglés, setsuana | F5: República parlamentaria | G5: 581726 | H5: 2512959 | I5: 2254126 | J5: 18843
A6: Burkina Faso | C6: Uagadugú | D6: Franco CFA de África Occidental | E6: Francés | F6: República semipresidencial | G6: 274000 | H6: 23061352 | I6: 17589198 | J6: 1879
A7: Burundi | B7: República de Burundi | C7: Gitega | D7: Franco de Burundi | E7: Kirundi, francés, suajili | F7: República presidencial | G7: 27830 | H7: 13298954 | I7: 12100000 | J7: 818
A8: Cabo Verde | B8: República de Cabo Verde | C8: Praia | D8: Escudo caboverdiano | E8: Portugués | F8: República parlamentaria | G8: 4033 | H8: 579019 | I8: 524833 | J8: 6867
A9: Camerún | B9: República de Camerún | C9: Yaundé | D9: Franco CFA de África Central | E9: Francés, inglés | F9: República presidencial | G9: 475442 | H9: 28856775 | I9: 22534532 | J9: 3358
A10: Chad | B10: República del Chad | C10: Yamena | D10: Franco CFA de África Central | E10: Francés, árabe | F10: República presidencial | G10: 1284000 | H10: 18362965 | I10: 13670084 | J10: 2439
A11: Comoras | B11: Unión de las Comoras | C11: Moroni | D11: Franco comorano | E11: Árabe, francés | F11: República presidenciall | G11: 2235 | H11: 943768 | I11: 724300 | J11: 1523
A12: Costa de Marfil | B12: República de Costa de Marfil | C12: Yamusukro, Abiyán | D12: Franco CFA de África Occidental | E12: Francés | F12: República presidencial | G12: 322460 | H12: 28560501 | I12: 23740424 | J12: 3841
A13: Egipto | B13: República Árabe de Egipto | C13: El Cairo | D13: Libra egipcia | E13: Árabe | F13: República semipresidencial | G13: 1001449 | H13: 110223169 | I13: 99402455 | J13: 3005
A14: Eritrea | B14: Estado de Eritrea | C14: Asmara | D14: Nakfa | E14: Ninguna. Lenguas de trabajo: Tigriña, árabe, nara, saho, afar, italiano, entre otros. | F14: república unipartidista bajo un gobierno de transición | G14: 117600 | H14: 3828025 | I14: 5869869 | J14: 1349
A15: Etiopía | B15: República Democrática Federal de Etiopía | C15: Adís Abeba | D15: Birr | E15: Amhárico | F15: República federal parlamentaria | G15: 1104300 | H15: 125088390 | I15: 98665000 | J15: 2556
A16: Gabón | B16: República Gabonesa | C16: Libreville | D16: Franco CFA de África Central | E16: Francés | F16: República presidencial | G16: 267668 | H16: 2397093 | I16: 1811079 | J16: 19252
A17: Gambia | B17: República de Gambia | C17: Banjul | D17: Dalasi | E17: Inglés | F17: República presidencial | G17: 10380 | H17: 2695710 | I17: 1825000 | J17: 1664
A18: Ghana | B18: República de Ghana | C18: Acra | D18: Cedi | E18: Inglés | F18: República presidencial | G18: 238534 | H18: 33699877 | I18: 24223431 | J18: 4650
A19: Guinea | B19: República de Guinea | C19: Conakry | D19: Franco guineano | E19: Francés | F19: República presidencial | G19: 245857 | H19: 14365577 | I19: 11628972 | J19: 1394
A20: Guinea Ecuatorial | B20: República de Guinea Ecuatorial | C20: Malabo | D20: Franco CFA de África Central | E20: Español, francés, portugués | F20: República presidencial | G20: 28051 | H20: 1544806 | I20: 1222442 | J20: 25988
A21: Guinea-Bissau | B21: República de Guinea Bissau | C21: Bissau | D21: Franco CFA de África Occidental | E21: Portugués | F21: República semipresidencial | G21: 36125 | H21: 2133429 | I21: 1693398 | J21: 1568
A22: Kenia | B22: República de Kenia | C22: Nairobi | D22: Chelín keniano | E22: Suajili, inglés | F22: República presidencial | G22: 580367 | H22: 58856854 | I22: 47564296 | J22: 3516
A23: Lesoto | B23: Reino de Lesoto | C23: Maseru | D23: Loti | E23: Sotho del Sur, inglés | F23: Monarquía parlamentaria | G23: 30355 | H23: 2234974 | I23: 2203821 | J23: 3752
A24: Liberia | B24: República de Liberia | C24: Monrovia | D24: Dólar liberiano | E24: Inglés | F24: República presidencial | G24: 111369 | H24: 5516743 | I24: 3476608 | J24: 881
A25: Libia | B25: Estado de Libia | C25: Trípoli | D25: Dinar libio | E25: Árabe | F25: República parlamentaria bajo un Gobierno provisional | G25: 1759540 | H25: 6835223 | I25: 5670688 | J25: 14236
A26: Madagascar | B26: República de Madagascar | C26: Antananarivo | D26: Ariary | E26: Malgache, francés, inglés | F26: República semipresidencial | G26: 587041 | H26: 30408014 | I26: 24430325 | J26: 1563
A27: Malaui | B27: República de Malaui | C27: Lilongüe | D27: Kwacha malauí | E27: Inglés, chichewa | F27: República presidencial | G27: 118484 | H27: 21222138 | I27: 16407000 | J27: 1172
A28: Malí | B28: República de Malí | C28: Bamako | D28: Franco CFA de África Occidental | E28: Francés | F28: República semipresidencial | G28: 1240192 | H28: 22356548 | I28: 17599694 | J28: 2360
A29: Marruecos | B29: Reino de Marruecos | C29: Rabat | D29: Dirham marroquí | E29: Árabe | F29: Monarquía semiconstitucional | G29: 446550 | H29: 38675756 | I29: 35330305 | J29: 9339
A30: Mauricio | B30: República de Mauricio | C30: Port Louis | D30: Rupia de Mauricio | E30: Inglés, criollo mauriciano | F30: República parlamentaria | G30: 2040 | H30: 1290608 | I30: 1262132 | J30: 22909
A31: Mauritania | B31: República Islámica de Mauritania | C31: Nuakchot | D31: Ouguiya | E31: Árabe | F31: República semipresidencial | G31: 1030700 | H31: 5046747 | I31: 4403313 | J31: 4004
A32: Mozambique | B32: República de Mozambique | C32: Maputo | D32: Metical mozambiqueño | E32: Portugués | F32: República presidencial | G32: 801590 | H32: 34293745 | I32: 27909798 | J32: 1512
A33: Namibia | B33: República de Namibia | C33: Windhoek | D33: Dólar namibio | E33: Inglés | F33: República presidencial | G33: 825418 | H33: 2747939 | I33: 2113007 | J33: 11756
A34: Nigeria | B34: República Federal de Nigeria | C34: Abuya | D34: Naira | E34: Inglés | F34: República federal presidencial | G34: 923768 | H34: 225458204 | I34: 188462640 | J34: 6351
A35: Níger | B35: República del Níger | C35: Niamey | D35: Franco CFA de África Occidental | E35: Francés, hausa | F35: República semipresidencial | G35: 1267000 | H35: 27653814 | I35: 18638600 | J35: 1154
A36: República Centroafricana | B36: República Centroafricana | C36: Bangui | D36: Franco CFA de África Central | E36: Sango, francés | F36: República presidencial | G36: 622984 | H36: 5160087 | I36: 4709000 | J36: 724
A37: República Democrática del Congo | B37: República Democrática del Congo | C37: Kinshasa | D37: Franco congoleño | E37: Francés | F37: República semipresidencial | G37: 2344858 | H37: 99515716 | I37: 82243000 | J37: 788
A38: República del Congo | B38: República del Congo | C38: Brazzaville | D38: Franco CFA de África Central | E38: Francés | F38: República presidencial | G38: 342000 | H38: 6009555 | I38: 4662446 | J38: 6985
A39: Ruanda | B39: República de Ruanda | C39: Kigali | D39: Franco ruandés | E39: Kinyarwanda, francés, inglés | F39: República presidencial | G39: 26798 | H39: 14025124 | I39: 12718198 | J39: 2397
A40: Santo Tomé y Príncipe | B40: República Democrática de Santo Tomé y Príncipe | C40: Santo Tomé | D40: Dobra | E40: Portugués | F40: República semipresidencial | G40: 964 | H40: 235845 | I40: 193413 | J40: 3220
A41: Senegal | B41: República del Senegal | C41: Dakar | D41: Franco CFA de África Occidental | E41: Francés | F41: República semipresidencial | G41: 196723 | H41: 18596101 | I41: 15589485 | J41: 1033
A42: Seychelles | B42: República de Seychelles | C42: Victoria | D42: Rupia de Seychelles | E42: Inglés, francés, criollo seychelense | F42: República presidencial | G42: 451 | H42: 100790 | I42: 100212 | J42: 30486
A43: Sierra Leona | B43: República de Sierra Leona | C43: Freetown | D43: Leone | E43: Inglés | F43: República presidencial | G43: 71740 | H43: 8596161 | I43: 7075641 | J43: 1760
A44: Somalia | B44: Somalia | C44: Mogadiscio | D44: Chelín somalí | E44: Somalí | F44: República federal parlamentaria | G44: 637661 | H44: 17157760 | I44: 14317996 | J44: 3077
A45: Somalilandia | B45: República de Somalilandia​ | C45: Hargeisa | D45: Chelín somalilandés | E45: Somalí, árabe | F45: República presidencial | G45: 137600 | I45: 3500000
A46: Suazilandia | B46: Reino de Suazilandia | C46: Lobamba (legislativa) Mbabane (administrativa) | D46: Lilangeni | E46: Inglés, suazi | F46: Monarquía absoluta | G46: 17364 | H46: 1223431 | I46: 1343098 | J46: 9896
A47: Sudáfrica | B47: República de Sudáfrica | C47: Pretoria (ejecutiva), Bloemfontein (judicial), Ciudad del Cabo (legislativa) | D47: Rand sudafricano | E47: Afrikáans, inglés, ndebele del sur, sotho del Norte, sotho, suazi, tsonga, tswana, venda, xhosa, zulú | F47: República parlamentaria | G47: 1221037 | H47: 61446203 | I47: 58775022 | J47: 13865
A48: Sudán | B48: República de Sudán | C48: Jartum | D48: Libra sudanesa | E48: Árabe, inglés | F48: República federal presidencial , bajo Junta militar | G48: 1886068 | H48: 47079118 | I48: 40235000 | J48: 4578
A49: Sudán del Sur | B49: República de Sudán del Sur | C49: Yuba | D49: Libra sursudanesa | E49: Inglés | F49: República federal presidencial | G49: 619745 | H49: 12996424 | I49: 12340000 | J49: 1420
A50: Sáhara Occidental | B50: República Árabe Saharaui Democrática | C50: El Aaiún (declarada), Bir Lehlu (temporal) | D50: Peseta saharaui, Dinar argelino | E50: Árabe, español | F50: Territorio no autónomo | G50: 266000 | H50: 642650 | I50: 582000
A51: Tanzania | B51: República Unida de Tanzania | C51: Dodoma | D51: Chelín tanzano | E51: Suajili, inglés | F51: República presidencial | G51: 945087 | H51: 66420320 | I51: 51822621 | J51: 3296
A52: Togo | B52: República Togolesa | C52: Lomé | D52: Franco CFA de África Occidental | E52: Francés | F52: República presidencial | G52: 56785 | H52: 9061262 | I52: 7756937 | J52: 1619
A53: Túnez | B53: República Tunecina | C53: Túnez | D53: Dinar tunecino | E53: Árabe | F53: República parlamentaria | G53: 163610 | H53: 12277167 | I53: 11725253 | J53: 12862
A54: Uganda | B54: República de Uganda | C54: Kampala | D54: Chelín ugandés | E54: Inglés, suajili | F54: República presidencial | G54: 236040 | H54: 50978989 | I54: 42971836 | J54: 2115
A55: Yibuti | B55: República de Yibuti | C55: Yibuti | D55: Franco yibutiano | E55: Árabe, francés | F55: República semipresidencial | G55: 23200 | H55: 1032373 | I55: 846687 | J55: 3584
A56: Zambia | B56: República de Zambia | C56: Lusaka | D56: Kwacha zambiano | E56: Inglés | F56: República presidencial | G56: 752614 | H56: 20362283 | I56: 16212000 | J56: 3898
A57: Zimbabue | B57: República de Zimbabue | C57: Harare | D57: Monedas bono de Zimbabue, Dólar estadounidense, Pula | E57: Inglés, shona | F57: República presidencial | G57: 390580 | H57: 16057365 | I57: 14438802 | J57: 2330
